{"text_format":"2","workbook":"xlsx","n_sheets":1,"sheets":["Sheet1"],"not_rendered":{"charts":0,"images":0,"macros":0,"external_links":0,"defined_names":1,"comments":0,"pivot_tables":0},"unopened":[],"bounds":{"document_bytes":16777216,"sheet_cells":100000,"run_cost":"one","rows_first":2000,"rows_last":500,"rows_between":2000,"halvings":0,"cell_chars":16384,"cell_head_chars":4096},"cells_cut":0,"cells_raw":0,"read":"whole","date_system":"1900"}

{"sheet":"Sheet1","index":0,"n_rows":155,"n_cols":10,"rows_kept":155,"cut":false,"hidden":false,"merged":[[137,0,137,3]]}
[null,"Bill of Quantity"]
[" "," Rehabilitation of Unified  Water Plant in Rawah"]
[null,"Rawah - Anbar"]
["#","Item","Unit","Quantity","Price $","Total $"]
[" A- Site Works"]
[1," Supply materials, tools and manpower to clean the site and removing the destroyed operators building, foundation, 20 cm thickness of existing soil, the concrete or masonry debris, trees, logs, upturned stumps, loose boulders, and any other objectionable material of any kind which would interfere with the performance or completion of the work, create a hazard to safety, or impair the subsequent usefulness of the work, or obstruct its operation. In addition to remove trees and other natural vegetation outside the actual lines of site, and all debris from the site to a dump site approved by the relevant authority.","M2",{"$f":"160*160","v":25600},null,{"$f":"D6*E6","v":0}]
["B- Civil Works for project and service buildings"]
[2,"Supply and install Steel windows  for project building of ( 1.5*2) dimension with U channel shape steel section  of 2x3 inch frame, 5mm thickness,T shape steel section of 2 inch  and steel protection(Burglar) with various shapes (flat, circular,.etc.), the work includes anti-flies net, handles, windows stopper , 6mm thick glass and painting with three layers of oil based paints in addition to anti rust primer, removing the old damaged windowa and repairing the walls after installing the new frame windowa with all accessories and work required to complete the work.  ","Ea.",10,null,{"$f":"D8*E8","v":0}]
[3,"Supply and install 6 mm thick glass, the work includes removing the old glass from windows, reparing the windows, painting the with three layers of oil based paint and  rplacing all damaged parts, locks and all accessories , with all the required works to complete the Job.","M2",200,null,0]
[4,"Supply and install wooden door for project and service buildings of 2.1x1 m and best type white jam wood and double face teak(saj) plywood - the frame (3*6\" )  should be paint with teak color; the work including removing the old damaged doors and frame, repairing the walls after installation of doors, all necessary fixings, fittings, locks with  key, accessories, hardware , connections accessories, and all the required works to complete the work. ","Ea.",13,null,0,null,null,null," "]
[5,"Supply and install hollow metal coated steel door partitioning every 20cm (4cmX4cmx2mm), and covered with steel plate 1.5 mm thickness on both sides the frame shall be 1.5 inch and 3 mm thickness. the work  including  Repair the walls and all necessary fixings, fittings, locks with  key, glazing, insulation foam, accessories, mastic, hardware and painting with anti-rust paint and 3 layers of oil paints, locks, connections accessories , and all the required works to complete the work. as following:"]
["A","Steel slide door of (4x 3) m for Alum room ","Ea.",2,null,0]
["B","Steel door of (2.1x 1) m","Ea.",8,null,0]
["C","Steel door of (2.1x 1.9) m","Ea.",2,null,0]
["D","Steel door in intake station building of 3*2 m","Ea.",6,null,0]
[6,"Supply materials, tools and manpower to repair and paint with three layers of oil based paint and repairing the existing steel doors of 1x2.1 m dimension,the work includes replacing all damaged parts of  the door, cutting and welding works,  locks and all accessories , with all the required works to complete the Job.","Ea.",14,null,0]
[7,"Supply materials, tools and manpower to repair and  paint  steel handrail of 90 cm height with three layers of oil based paint ,the work includes replacing all damaged parts of  thehandrail, cutting and welding works and all accessories , and all the required works to complete the Job.","M.l.",60,null,0]
[8,"Supply materials, tools and manpower to remove damaged porceline tiles and cement mortar for the service building  floor، and install mosaic tiles of (40X40)cm best quality (approved sample),  with cement sand mortar (1:3) , the price includes steps of polishing the mosaic tiles in site and not limited to fill the joints with white cement, with all the required works complete the work.","M2",150,null,0]
[9,"Supply and install ceramic tiles (25X40cm) for the sanitary walls of for project and service buildings (as sample approved) using best  type on two layer of plastering of cement mortar (1: 2) and (1:3), solution of water and bonding agent, the water absorption shall be 10 to 15%, the price includes removing the damaged tiles and cement mortar, all the materials needed to install, filling with white cement and polishing with all the required works to complete the work.","M2",25,null,0]
[10,"Supply materials, tools and manpower to  paint the internal and external walls for project and service buildings with three layers of plastic based paints, painting  the skirting of 1.5 m height, internal walls for the buildings, ceiling of sanitary units and kitchen, internal walls and ceiling for rooms of alum and chlorine devices and sterilization materials warehouse using three layers of oil based paints, price should include removing all damaged parts of the walls with repairing them, cleaning and washing the walls before painting process, with all the required works to complete the Job","M2",6500,null,0]
[11,"Supply materials, tools and manpower to cast the walkways and corridors with removal of the old walkways,  the work includes leveling the ground, compaction of existing soil,spreading soil layers compacted with 95% degree of compaction, according to the required level, the layer thickness should not more than 25 cm thick, spreading sub-base layer compacted with 95% degree of compaction and 25 cm thick, spreading thick nylon layer and floor with 21 Mpa sulphate resistance reinforced concrete  and 10 cm thick , the price should include working expansion joints, casting the  foundation of retaining walls   with concrete of 21 Mpa build the walls with 24 cm using stone and cement mortar (1:3),  and plastering the walls using cement- sand mortar (1:3)  and all the required works to complete the Job.","M2",600,null,0]
[12," Supply materials, tools and manpower to finish the main corridors of the building with interlock tiles of 6 cm thickness and cement- sand mortar and filling the joints with fine sand , price should include leveling the ground, compaction of existing soil, the work includes , spreading sub-base layer compacted with 95% degree of compaction and 25 cm thick, spreading thick nylon layer, removing the old damage tiles  and all the required works to complete the work.","M2",110,null,0]
[13,"Supply materials, tools and manpower to remove the old mastic  of the buildings roofs and refill the joints using new mastic with cautery , the work includes removing the damaged concrete tiles and re finish with new concrete tiles of 80 x80 x4cm dimensions, cleaning and casting  the ends with concrete  with good burnishing, with all the required works to complete the work.","M2",2000,null,0]
[14,"Supply materials, tools and manpower to maintain, clean all sewage pipes ,manholes and replacing the damaged parts with new ones,with all the required works to complete the Job.","M.l",150,null,0]
[15," Supply materials, tools and manpower to maintain and test the network of  potable water pipes for all project parts, the work includes replacing the damaged parts with new ones( all fittings and pipes),with all the required works to complete the Job.","M.l",200,null,0]
[16,"Supply, install, connect and test white vitreous with semi pedestal / with stand Wash Basin, size (56 X 40) cm complete with all fittings, valves, waste pipes to nearest floor traps, connection to water distribution,  the price also includes the mixer and any other necessary parts and all the required works to complete the Job","Ea.",4,null,0]
[17," Supply, install, connect shower mixer and any other necessary parts and all the required works to complete the Job.","Ea.",2,null,0]
[18,"Supply installation, testing and commissioning 4\" UPVC SN8, 6 bars rain water pipes down to rain system (gutter) with wired mesh above ground level, with all required hanging accessories (Stainless steel nails), fittings and vent caps and all the required works to complete the Job.  ","M.l.",50,null,0]
[19,"Supply and install galvanized steel gage 16  Water Tank 1.0 Cubic meters in size. Price to include concrete stand, automatic float valves, valves, fittings, vents, watertight cover, lock and all necessary works to complete job","Ea.",4,null,0]
[20,"Supply, install and connect water heater of 120 ltr capacity, with using of cable (3*4) mm2 with switch (25-32)A to connect with the electrical source and all the required works","Ea.",2,null,0]
[21,"Supply materials, tools and manpower to build the damaged block fence wall using (20x20x40) cm concrete blocks and cement –sand mortar (1:3), above the D.P.C the work includes installing concrete block column each 5 m and double column each 10 m, Plastering the block wall fence from both sides with smooth 1:3 cement-sand mortar and removing the damaged parts of the fence wall and removing  all debris from the site to a dump site approved by the relevant authority, with all the required works to complete the Job.","M2",300,null,0]
[22,"Supply materials, tools and manpower to paint the fence wall from both sides with three layers of plastic based paints, price should include repairing all damaged parts of the walls using cement-sand mortar, cleaning and washing with water, with all the required works to complete the Job.","M2",2000,null,0]
["C - Electrical works for project and service buildings"]
[23,"Supply materials, tools and manpower to remove all damaged electrical installtions, swiches , wires and cables and delivered to the project store , with all the required works to complete the Job.","L.s",1,null,0]
[24,"Supply, connect and operate electrical point with electrical switch and installations using single copper wires of (1 x 2.5)mm2,  with all installation and connection accessories all the required works to complete the Job. as following :"]
["A"," Electrical single switch for lighting","Ea.",18,null,0]
["B"," Ceiling fan ","Ea.",10,null,0]
["C"," Air ventilator fan of 6 inch diameter","Ea.",6,null,0]
["D"," Air ventilator fan of 12 inch diameter","Ea.",2,null,0]
["E","Plug switch of 13 amp capacity","Ea.",25,null,0]
[25,"Supply, install, connect, test and operate the  saving energy lamp of 85 W capacity with holder using single copper wires of (1x2.5) mm2, the work includes  pulling wires inside PVC conduits and all connection and installation accessories with all the required works to complete the Job.","Ea.",60,null,0]
[26,"Supply, connect and operate Waterproof Lighting Fixture lighting with saving energy lamp of 105 W capacity, using  copper wires of (1 x 2.5) mm2, the work includes  pulling wires inside PVC conduits, with all the required works to complete the Job.","Ea.",20,null,0]
[27,"Supply, connect and operate electrical point with electrical switch of 32 Amp capacity using wires of (1x6) mm2, the work includes pulling wires inside PVC conduits which connecting from sub-distribution board with all installation and connection accessories all the required works to complete the Job","Ea.",12,null,0]
[28,"Supply, install and connect air-conditioning split unit (cooling and heating) of 2 ton capacity with the protection device and installation of the outdoor part on steel frames, and all the required works","Ea.",15,null,0]
[29,"Supply, install, connect and operate 400 Watt sodium projector with holder, it is installed by pole of 1 m height on the walls the work includes, installation and connection electrical point using single copper wires of (1x2.5) mm2, the work includes pulling wires inside PVC conduits and all connection and installation accessories with all the required works to complete the Job.","Ea.",35,null,0]
[30,"Supply, install, connect and test electrical circuit breakers board to control with operating projectors consist of main circuit breakers three phase of 32 Amp, contactor, selector switch for manual operating, (M-O-A) for automatic operating, auto cell and  circuit breakers single phase of 16 Amp capacity and all connection and installation accessories with all the required works to complete the Job.","Ea.",1,null,0]
[31,"Supply, install, connect, test and operate the sub distribution board consist of metal box and circuit breakers with all accessories and all the required works to complete the Job as follows:\n\n1 main circuit breaker of three phase and 100 Amp capacity with bus bar of 100 Amp;\n5 circuit breaker of 10 Amp capacity;\n7 circuit breaker of 20 Amp capacity;\n6 circuit breaker of 32 Amp capacity.Short circuit breaking capacity of circuit breakers shall not be less that 35 kA","Ea.",2,null,0]
["D- Reconstruction of Reception building"]
[32,"Supply materials, tools, equipment and manpower to remove the damaged reception building and 20 cm of the exisiting soil under and around the building, the work includes removing all debris from the site to a dump site approved by the relevant authority, with all the required works to complete the Job.","M2",50,null,0]
[33," Supply materials, tools and manpower spread well compacted crushed stone layer of 20 cm thick under the building foundation, the work includes leveling the sub-grade layer and well compaction, with all the required works to complete the Job","M3",15,null,0]
[34,"Supply materials, tools and manpower to  filling and spread  by approved  screened sub-base materials maximum size is 2in (Type B) up to the required  level for the building and where required within the area inside, including all necessary compaction 95%,  and thickness of each layer shall not exceed 25cm,with all the required works to complete the Job","M3",24,null,0]
[35,"Supply materials, tools and manpower to cast the blinding with 21 Map compressive strength and 10 cm thick under foundations, using sulphate resistant Cement, Sika proof andlaying one layer of thick nylon (polyphone sheets 500 Micron) before casting concrete with all the required works to complete the Job.","M3",2,null,0]
[36,"Supply materials, tools and manpower to cast  26MPa using soleplate resistance reinforced concrete for foundation of 30 cm thick, the price should include high yield (420N/mm2) deformed steel reinforcement, timber formwork shuttering, as per attached drawings, with all the required works to complete the Job.","M3",5,null,0]
[37," Spray and apply chlordane (treatment liquid of termite) for foundations before casting the D.P.C layer and under building floors with all the required works to complete the Job.","M2",50,null,0]
[38,"Supply materials, tools and manpower to build the walls under D.P.C level for the walls and walls passageways with stone and cement-sand mortar (1:3) Dimensions (40x30)cm, the work includes plastering the walls with cement –sand mortar (1:3) and spreading for both sides of the walls and foundations using the tar with all the required works to complete the Job.","M3",7,null,0]
[39,"Supply materials, tools and manpower to cast 21MPa concrete for D.P.C level with 10 cm thickness and 30 cm width, using soleplate resistant Cement and Sika liquid for waterproof with all the required works to complete the Job. As following:","M3",1,null,0]
[40,"Supply materials, tools and manpower to build with stone and cement mortar (1:3) above D.P.C levelof 3 m height and 30 cm width , with all the required works to complete the Job.","M3",21,null,0]
[41,"Supply materials, tools and manpower to cast reinforced concrete with compressive strength 21 Mpa for roof of 18 cm thick, drop beams, water buffles of 50 cm height and 12 cm thick ,lintel beam of 26 cm thick , the work includes works of the wooden framework, reinforcement and all accessories with all the required works to complete the Job.","M3",9,null,0]
[42," Supply materials, tools and manpower to import and fill with selected material (river sand) subject to the Engineer's approval, in layers that not exceed 25cm inside the building structure, passageways and corridors including spraying and well compacted , with all the required works to complete the Job.","M3",24,null,0]
[43,"Supply materials, tools and manpower to plaster the external walls using 20mm thick smooth-finished  with  cement sand mortar (1:3) using aluminum straight edges, waterproofing plastering in two coats over and rendering with cement finishing coat, including waterproofing additives, all necessary angle beads and wire mesh complete.","M2",100,null,0]
[44,"Supply materials, tools and manpower to plaster20mm thick smooth-finished internal walls and roof with gypsum plastering; the price includes base spray with cement-sand mortar and all work required ti comlete the job.","M2",70,null,0]
[45,"Supply materials, tools and manpower to paint the internal walls with three layers of plastic based paints, painting  the skirting of 1.5 m height using oil based paints, price should include painting the ceiling of sanitary units with three layers of oil based paints and all work requirements to complete the Job.","M2",70,null,0]
[46," Supply materials, tools and manpower to spread crashed stone or boulder layer of 7 cm with well compaction and cast 21MPa concrete  with  10 cm thick for the floor under tiles using sulphate resistant cement the work includes executing expansion joints and all the required works to complete the Job.","M2",47,null,0]
[47," Supply and install ceramic tiles (25X40X1cm) for the sanitary unit, kitchen and Storage room walls, the water absorption shall be 10 to 15%, the price includes all the materials needed to install, filling with white cement and polishing with all the required works to complete the Job.","M2",40,null,0]
[48,"Supply  and install ceramic  tiles anti slip for the sanitation unit and kitchen floors  size (30X30X0.8 cm) (as sample approved) using best  type, solution of water and bonding agent ,the water absorption shall be 0.5 to 0.9% , the price include the all the material needed to install , filling with white cement and  polishing the porceline tiles with all the required works complete the work. ","M2",6,null,0]
[49,"Supply and install Mosaic tiles of (40X40)cm number best quality (approved sample) stone no.4,  with cement sand mortar (1:3) , the price includes steps of polishing the mosaic tiles in site and not limited to fill the joints with white cement,  and installation of 10 cm ceramic skirting, with all the required works complete the work.","M2",20,null,0]
[50,"Supply materials, tools and manpower to cast sulphate resistant plain concrete of 21 MPa and 10 cm thick  for floor of passageways, the work includes andlaying one layer of thick nylon (polyphone sheets 500 Micron) before casting concrete, with all the required works to complete the Job.  ","M2",20,null,0]
[51,"Supply and  spread two opposite layers of tar between them water-proof layer and then spreading corks layer with 5 cm thickness and clean river sand layer with 10 cm thickness and finishing with concrete tiles of (80x80x4) cm thickness, filling the joints with mastic and giving necessary slope for water drainage and all work requirements to complete the Job.","M2",30,null,0]
[52,"Supply installation, testing and commissioning 4\" UPVC SN8, 6 bars rain water pipes down to rain system (gutter) with wired mesh above ground level, with all required hanging accessories (Stainless steel nails), fittings and vent caps and all the required works to complete the Job.  ","M.l",6,null,0]
[53,"Supply and install hollow metal coated double face steel door,the  partitions inside the door included  every 20cm  by Square hollow section (4cmX4cmx2mm), and covered with steel plate 1.5mm thickness on both sides the frame shall be 2.5 inch and 3mm thickness. the work  including all necessary fixings, fittings, locks with  key, glazing, insulation foam, accessories, mastic, hardware and painting with anti-rust paint and 3 layers of oil paints, locks, connections accessories, and all the required works to complete the work. as following:"]
["A","Steel door of (2.1x 1) m","Ea.",2,null,{"$f":"D71*E71","v":0}]
["B","Steel door of (2.5 x 2) m","Ea.",1,null,0]
[54,"Supply and install P.V.C windows with minimum 60 mm frame thickness with steel protection with various shapes (flat, circular, ..etc) as per attached drawings, the work includes anti-flies net, handles , 6mm thick glass and installation of U channel shaped steel section of (1.5x 3) inch dimension painting with three layers of oil based paints in addition to anti rust primer with all accessories and work required to complete the Job.","M2",3,null,0]
[55,"Supply, installation, testing and commissioning of UPVC of 4 inch diameter, SN8 drainage 6 bar and ventilation pipes down to manholes with all required fittings including excavation, back filling, incasing with Soleplate resistant cement concrete and roof vent caps, including connections and work required to complete the Job.","M.l",15,null,0]
[56,"Supply and build  Manhole of 30x30 cm dimensions from stones, ground slap 10 cm and top slab 20 cm, price should include excavation to any required depth ,commission, Benching, 25  ton cast iron cover, with plastering from both side using cement-sand mortar (1:3), coating the external face of wall  using tar, with all  necessary civil, mechanical needed works.","Ea.",3,null,0]
[57,"Supply, install and connect water pipe (PPR) of 1-inch diameter to connect the building with water source the work includes excavation, backfill using river soil, with all connection and installations accessories and all the required works to complete the Job.  ","M.l",50,null,0]
[58,"Supply, install and connect water pipe (PPR) of 3/4-inch  diameter with three lines (water source, water heater and water tank), price should include all connection and installations accessories and water chrome taps with all the required works to complete the Job.","M.l",20,null,0]
[59,"Supply and Install Oriental type Toilet (50 * 60) cm, White,  complete with flush tank, fitting,  stop and valve side tap. Price to include waste pipes to nearest. floor trap and all the required works to complete the Job.\n\n","Ea.",1,null,0]
[60,"Supply, install, connect and test white vitreous with semi pedestal / with stand Wash Basin, size (56 X 40) cm complete with all fittings, valves, waste pipes to nearest floor traps, connection to water distribution,  the price also includes the mixer and any other necessary parts and all the required works to complete the Job","Ea.",1,null,0]
[61,"Supply, install and commissioning of stainless steel double bowl  sink, from approved quality. Complete with: chrome plated mixer for  sinks, supports, waste outlet, tail piece, P-trap chrome plated, chrome plated 14mm  pipe to water system  and required parts for the water supply line, double bowel sink size 150X60 cm and all the required works to complete the Job","Ea.",1,null,0]
[62,"Supply and install galvanized steel gage 16  Water Tank 1.0 Cubic meters in size. Price to include concrete stand, automatic float valves, valves, fittings, vents, watertight cover, lock and all necessary works to complete job","Ea.",1,null,0]
[63,"Supply and connect a chrome water tap of 1/2 inch diameter with all connection and installation accessories","Ea.",2,null,0]
[64,"Supply  and build the septic tank of 2x2.5x2m dimensions, price should include soil excavations, casting the foundation of walls with 21 Mpa Concrete , 20 cm thick and 40 cm width using soleplate resistant cement, build  the walls of 30 cm width with ston of and cement mortar (1:3), casting reinforced concrete with compressive strength 21 Mpa for 20 cm thick roof with two layers reinforcement and installation manhole steel covers of (60 x 60 ) cm and supplying maintenance ladders  with all the required works to complete the Job.  ","Ea.",1,null,0]
[65,"Supply, connect and operate electrical point with  Electrical single switch for lighting  using single copper wires of (1 x 2.5)mm2, the work includes  pulling wires inside PVC conduits and connecting it from sub-distribution board with all installation and connection accessories all the required works to complete the Job. as following :","Ea.",8,null,0]
[66,"Supply, connect and operate electrical point with electrical switch using single copper wires of (1 x 2.5)mm2, the work includes  pulling wires inside PVC conduits and connecting it from sub-distribution board with all installation and connection accessories all the required works to complete the Job. as following :"]
["A","Plug switch of 13 amp capacity","Ea.",3,null,0]
["B","Plug switch of 15 amp capacity","Ea.",1,null,0]
[67,"Supply, install, connect, test and operate LED installations lighting of 70 Wat , using single copper wires of (1x2.5) mm2, the work includes  pulling wires inside PVC conduits and all connection and installation accessories with all the required works to complete the Job.","Ea.",7,null,0]
[68,"Supply, install, connect, test and operate out side lighting (1*40) watt with cover Water proof , using single copper wires of (1x2.5) mm2, the work includes  pulling wires inside PVC conduits and all connection and installation accessories with all the required works to complete the Job.","Ea.",5,null,0]
[69,"Supply, connect and operate electrical installations  with wiring using single copper wires of (1 x 2.5) mm2, the work includes pulling wires inside PVC conduits with all installation and connection accessories all the required works to complete the Job."]
["A"," Ceiling fan ","Ea.",2,null,0]
["B"," Air ventilator fan of 6 inch diameter","Ea.",1,null,0]
["C"," Air ventilator fan of 12 inch diameter","Ea.",1,null,0]
[70,"Supply materials, tools and manpower to  connect  the building with main electricity source using electrical cable of 4 x16 mm2, with all installation and connection accessories,and  all the required works to complete the Job.  ","M.l",120,null,0]
[71,"Supply, install and connect sub distribution board of 12 lines and circuit breaker of 100 A, with all connection and installations accessories.","Ea.",1,null,0]
[72,"Supply, connect and operate electrical point with electrical switch of 32 Amp capacity using wires of (1x4) mm2, the work includes pulling wires inside PVC conduits which connecting from sub-distribution board for air-conditioning split unit with all installation and connection accessories all the required works to complete the Job","Ea.",1,null,0]
[73," Supply, install and connect air-conditioning split unit (cooling and heating) of 2 ton capacity with the protection device and installation of the outdoor part on steel frames, and all the required works .See compliance sheet .","Ea.",1,null,0]
[74," Supply, install and connect water heater of 120 Lit capacity type wall mounted with using of cable (3*4) mm2 with switch (25-32)A to connect with the electrical source and all the required works .See compliance sheet","Ea.",1,null,0]
["E-  Rehabilitation of the warehouse ( Steel  truss )"]
[75,"Supply materials, tools and manpower to remove all damaged parts of the steel truss (steel corrugated roof and walls sheet plate and steel sections), the work includes removing all debris from the site to a dump site approved by the relevant authority, with all the required works to complete the Job.","M2",98,null,0]
[76,"Supply materials, tools and manpower to install a steel corrugated roof sheet plate of 0.8 mm thickness and (6*1 m) dimensions, the price includes cutting and welding works, with Strengthening long spaces with steel rectangular section of 1.5*3 inch to install the plates well on roof and  all sides of the truss, and all requirements to complete the work. ","M2",400,null,0]
[77,"Supply, install steel angle section of 2.5 -inch and 4 mm thick to create shelves inside the warehouse, the price includes cutting and welding works with all installations and connections accessories, painting with anti-rust paint and 3 layers of oil paints,and  all the required works to complete the Job","M.l",200,null,0]
[78,"Supply and install steel sliding  door of (4x3)m dimensions, 3\" thick frame  and  15.mm thick steel  plate,  the work includes installing (1*2 m) door (within the slide door), all accessories, locks,  3 layer of oil based paint in addition to anti rust prime coat, with all the required works to complete the Job .","Ea.",1,null,0]
[79,"Supply , install and connect manual crane of 5 ton from the best origin in the local market, free movements and in two directions, the work includes all installation and connection accessories, supplying and installing the steel structure of the manual crane using  H steel section of 6 inch  which be installed on the truss roof by welding  and roll bolt of 32 mm, with painting with 3 layers of oil based paints in addition to anti-rust Primer , and all the works required to complete the job .","Ea.",1,null,0]
["F- Water treatment unit"]
[80,"Supply materials, tools and manpower to provide, install, connect and operate a horizontal pump (split case) with electrical board from western origin as the following specification:\nQ = 480m3/hr., H = 50m, 1500r/min, electrical engine 250 KW capacity, the work includes supplying and installing a main electrical  board and  electrical cable of (3*240mm2) and 300m length from the pump to the board and electrical cable of (4*240 mm2) form electrical transformer to the main board of 30 m length for each pump, the electrical board consist of circuit breaker of  600Amp, 3 contactors 500Amp,electrical overload 300 Amp, phase failure, timer, amperage, Hertz and voltage meters (digital), the connection among board parts should be by bus bar and 3 CT connection for each phase connected to amperage meter by Selector switch for amperage reading for each phase, these parts placed in a metal box of (100x120)cm , required brands are ABB, Schneider, Hyundai and Siemens, making a steel base to ensure keeping the board vertical,  supplying, installing and contacting check valve, Rubber Expansion Joint and 2 valves of 12 inch dimeter , all installations and connections accessories, Elbows, Tees, Reducer Couplings, Flanges, bolts, Washers.. etc., to ensure that the pump is properly operated, with all the works required to complete the Job, the pumps in the water plant are Standart type. Certificate of origin and inspection documents are required .See compliance sheet\n\n","Ea.",3,null,0]
[81,"Supply, install, connect and operate a rotary air blower pupm for the reverse washing process of the filters as the following specification:\nQ= 750m3/hr. capacity, Head of pressure = 20 bar , 1500r/min, with the electrical engine with same capacity of the pumps from western origin, the work includes repairing the reverse washing system and replacing the damaged parts; supplying, installing and connecting the starter of the system which includes: 3 contactors of 250 Amp, circuit breaker of 300 Amp, overload of 200 Amp capacity and electrical timer(required brands are ABB, Schneider, Hyundai and Siemens), and all the works required to complete the work, and inspection documents are required .\n","Ea.",1,null,0]
[82,"Supply, install, connect, test and operate electrical crane doble girder (5Ton) 6 direction two speed for lower& Upper the work includes supply festoon system (Cable, Channel, angle& trolley) of 60 m length, with overloads and slope sensors for pumping room, and all the required works to complete the work, as per specification following:  \n1-Hoisting capacity  5000Kg\n2- Lifting Crane 9m\n3-Dynamic test load  5500kg at least \n4-Static test load 5500kg at least \n5-Lifting speed   Creep 0.6m/min   Fast 4m/min at least \n6-Hoisting Break type   Electromagnetic disk break. \n7-Cross travel break type   Electromagnetic.\n8-Control type With pushbutton.\n9-Long Travel electrical component. \nRequired brands are KM, GIS or ABM. \n","Ea.",1,null,0]
[83," Supply, install and connect double flange gate valves of 6 inch diameter for the sedimentation basins from western origin, the work includes removing the old damged valves, with all mecanical of connection and installtion accessories, and all requirements to complete the job.","Ea.",6,null,0]
[84,"supply materials and manpower to clean and maintain the  sedimentation  basins with all walls and floors of mud deposits (size: 25m diameter and 5m hieght), the work includes painting by using a nutritional epoxy (western origin) for the internal walls and floor of the tank and curing process for walls' cracks, with all requirements to complete the job.","Ea.",2,null,0]
[85,"Supply materials and tools to maintain mud sweeper of the sedimentation basins, the work includes replacing sweeper's wheels (four wheels for each sweeper of 8 inch diameter), replacing the  damaged steel parts of the steel structure of mud sweeper Inside and outside the water with new ones, with painting it with three layer of waterproof based paint , with all mechanical connecting which ensure operating it, and all requirements to complete the job.","Ea.",2,null,0]
[86,"Supply, install, connect, test and operatet  the gear box and  electrical motor of 3 kw capacity , 1500 rpm, 3-phase  from western origin which works to rotate muds sweeper around sedimentation basins, the work includes all mechanical and electrical connecting which ensure operating it fully and removing the old damaged parts ( electrical motors and gear box with accessories), with all requirements to complete the job. See compliance sheet","Ea.",2,null,0]
[87,"Supply, install, connect, test and operate electrical motor of 10 KW capacity, RPM 900 r/ min and three phase from western origin which works on the movement and irritation of the muds in the small rotors existing in the sedimentation basins with the shaft and its blades, the work includes all mechanical and electrical connecting which ensure operating it fully and removing the old damaged parts (electrical motors with accessories), and all requirements to complete the job..See compliance sheet","Ea.",2,null,0]
[88,"Supply, connect, test and operate to install distribution board of the muds sweepers and the it's basins, which consist of parts as follows:\n2  Circuit breakers of 60 Amp.\n10 contactors of 60 Amp;\n1 amperage gage;\n1 voltage meter; \n1 HZ gage, 1 selector switch, 1 phase failure, 1 overload of 10 A capacity.\nMetal board of 70*35 cm \n The price includes wiring works to ensure operating the board, required brands are ABB, Schneider, Hyundai and Siemens, all accessories of electrical connections and installations , and all required works to complete the job.\n","Ea.",2,null,0]
[89,"Supply, install, connect and operate chlorination device of 8 kg/hr capacity with injector Alldoz type, the work includes supplying and installing all required connection accessories of the device; copper pipes, bronze valves and a network of ppr pipes of 35m length with all network accessories, the device should be approved western origin, with all requirements to complete the job.. See compliance sheet ","Ea.",3,null,0]
[90," Supply, install, connect, test and operate chlorine poster pumps of 10 m3/h capacity and head of 120 m with all accessories of electrical and mechanical connections  and connecting it with the electrical board of the project, the work includes removing all the old damaged device with its accessories, and all the works required to complete the Job.. See compliance sheet","Ea",3,null,0]
[91,"Supply materials, tools and manpower to connect the water PPR pipes of 1.5-inch diameter which connecting between the chlorine devices room and the sedimentation and filters basins. The work includes all  connection accessories and fitting as valves, tees, elbows .etc., making excavation of the pipe path with depth not less than 30 cm, with the re-casting the pipe path ,and with all work requirements to complete the job.","M.l",350,null,0]
[92,"Supply, install, connect and test Spray system which consist of sprinklers water (shower) installed in the ceiling of the chlorine room which working to reduce the poisoning in case there is a leakage of chlorine, price should include all connection and installation accessories, PPR pipes network, supplying and installing water pupm of 1.5 KW, connecting the sprinklers network with the water source , with all requirements to complete the work.","Ea.",10,null,0]
[93,"Supply, install, connect, test and operate electrical crane from western origin of 5-ton capacity, free movements and in two directions (up-down) connecting it with the ceiling of the chlorine bottles warehouse,the price include, all electrical and mechanical installation and connection accessories, removing the old crane and all accessories ,Required brands are KM, GIS or ABM.  and all requirements to complete the work. See compliance sheet ","Ea.",1,null,0]
[94,"Supplying of special uniform with masks from the best quality worn by workers who are dealing with chlorine devices.","Ea.",10,null,0]
[95,"Supply, install, connect, test and operate Alum dossing pumps from western origin with capacity of 4 bar, 1200 L/h, 1.5 K.W and 1500 rpm for electric motor with all accessories of electrical,mechanical connections,  connecting it with the electrical source and all requirements to complete the job. See compliance sheet\n      ","Ea.",4,null,0]
[96," Supply, install, connect, test and operate electrcal motor for the alum mixer as the following specification: sheft length of 1.5 m with 3 feathers to mix the mixture, stainless steel type, capacity of 2 kw, RPM 1500,  the work includes all accessories of  electrical,mechanical connections,connecting it with the electrical source, and all requirements to complete the work. See compliance sheet","Ea.",2,null,0]
[97,"Supply materials, tools and manpower to connect the water PPR pipes of 1 -inch diameter which connecting between the alum devices room and the sedimentation basins. The work includes all  connection accessories and fitting as valves, tees, elbows .etc., making excavation of the pipe path with depth not less than 30 cm, with the re-casting the pipe path ,and with all work requirements to complete the job.","M.l",150,null,0]
[98,"Supply materials, tools and manpower to maintain, repair, test and operate the filters gate valves of 8'' diameter which are used to control the entry of water from the filters to the ground tanks\n The mechanical maintenance of gate valves includes:\n- Replacement of the damaged Shaft with a new stainless steel shaft with its key, the price should include maintenance of the damaged gate, replacing the  Becken Padding and all damaged mechanical parts and operation of the valve mechanically and fully .\n\nThe electrical  maintenance of gate valves includes:\n- maintenance of the electric motor of 1 KW and three-phase for the valve by re coiled the engine coils using high quality copper wire, maintaining the gear box, replacing all the damaged internal and external parts of the valves. So that the valve works electrically and fully.\nThe work includes all accessories of  electrical, mechanical connections, connecting it with the electrical source, and all requirements to complete the work.\n","Ea.",8,null,0]
[99,"Supply materials, tools and manpower to maintain, repair, test and operate the filters gate valves of outlet of water and washing of 12'' diameter which are used to control the entry of water from the sedimentation basins to filters,\n The mechanical maintenance of gate valves includes:\n- Replacement of the damaged Shaft with a new stainless steel shaft with its key, the price should include maintenance of the damaged gate, replacing the  Becken Padding and all damaged mechanical parts and operation of the valve mechanically and fully .\n\nThe electrical  maintenance of gate valves includes:\n- maintenance of the electric motor of 1 KW and three-phase for the valve by re coiled the engine coils using high quality copper wire, maintaining the gear box, replacing all the damaged internal and external parts of the valves. So that the valve works electrically and fully.\nThe work includes all accessories of  electrical, mechanical connections, connecting it with the electrical source, and all requirements to complete the work.\n","Ea.",12,null,0]
[100,"Supply, install, connect and test double flange gate valves (mechanical - electrical valves) of 20 – inch dimeter which using in  the reverse washing process of the filters, the work includes all connection and installation accessories and removing the old damaged valves, with all requirements to complete the work.","Ea.",4,null,0]
[101,"Supply, install, connect, test and operate service submersible pump with 2 kW electrical motor capacity and  delivery hose is 2 inch diameter  to discharge the accumulated water in the pumps hall and the other one inside hall under filters basins,the work includes all accessories of  electrical, mechanical connections, connecting it with the electrical source in the electrical board, and all requirements to complete the work. See compliance sheet","Ea.",2,null,0]
[102,"Supply tools, materials and manpower to install service passageway of 1.2 width inside  the hall under filters basins which contain of the pipes network, which consist of steel u section of 3 inch and 4 mm thick for the main and sub beams and columns, steel rectangle section of 3*1.5 and 3 mm thick for the both side of  the handrail with 70 cm high and diamond plate of 4 mm thick for the floor, the work includes cutting and welding works, and painting with anti-rust paint and 3 layers of oil paints, with all requirements to complete the work.","M.l",44,null,0]
[103,"Supply materials, tools and manpower to paint all pipes network existing in the hall under filters with anti-rust paint and 3 layers of oil paints, the work includes treatment of leakage in water pipes, using the \"sand blast\" to remove the precipitations and corrosion on the pipes network, with all requirements to complete the work. ","M.l",100,null,0]
[104," Supply materials, tools and manpower to repair the filter valves electrical box; the work includes replacing all the damaged parts of contactors, breakers, pass bars, connectors, light signs and ON/OFF buttons with re-wiring, provided it is delivered to the end user it is working and controls fully with the filters valves  without any defect, with all requirements to complete the work. with all works required to complete the Job. ","Ea.",8,null,0]
["G- Electrical Generators and transformer works:          "]
[105," Supply, install and operate generator of 1250 kVA capacity (50Hz/400V) silent type, Cummins, Perkins and caterpillar or equivalent, the work includes supplying, installing and connecting a galvanized fuel tank of 5000 ltr capacity to be installed on stand steel of steel angle section 4 inch and 4 mm thick, with all required electrical and mecanecal  installation and connections, with all requirements to complete the job. Certificate of origin and inspection documents are required. See compliance sheet","Ea.",1,null,0]
[106,"Supply materials, tools and manpower to repair and maintain the generator type Cummins of 1100KVA capacity 12 cylinders; the work includes replacing all parts, as detailed below:\n- 2 Super charge\n- Water radiator with all joins (intake & charge)\n- Belts\n- Roller of belt of engine\n - Battery 12 V & 200 Amps (Qty.2) with cable connections.\n- Fan engine\n- Fuel injectors ( 1Set).\n- Fuel pump\n- Oil engine, water radiator with all filters ( air, fuel& oil).\nall above materials should be original, set is (12 Oty) , the work includes, repairing  all electrical components with replacing all damaged parts to ensure operating the generator with the full load test, with all requirements to complete the job.\n","Ea.",1,null,0]
[107," Supply,install, connect, test and operated changeover of 1600 Amp.  capacity with the metal board of 70*40*30cm size, passbars, and multi digit screen (V, A, Hz). Preferred brands are ABB, Schneider, Siemens or equivalent, with electrical cables  to connect  the board with generators using armed cable of (4x300mm2) and 60 m length for each generators,  all electrical installation and connection accessories, and all the required works to complete the Job. See compliance sheet","Ea.",2,null,0]
[108,"Supply materials, tools and manpoer to install a shed for the generator and fuel tanks of (10x5)m dimension 3m height, the columns should be steel square section (4x4)\", the beams steel section (3x3)inch, corrugated roof sheet 0.8mm thickness for the roof, the price includes painting by anti-rust and 3 layers of oil paint, with all required works to complete the job.","M2",50,null,{"$f":"D135*E135","v":0}]
[109,"Supply materials, tools and manpower to cast a concrete base of 25cm thickness by using sulphate resistant cement not less than 21MPa compressive strength reinforced by 2 layers of BRC of 6 mm thick, with all requirements to complete the job.  ","M2",50,null,0]
[110," Supply, install, connect and operate transformer of 1000 kVa capacity and the coil of copper, the work includes supplying and installing circuit breaker of 1600 Amp required brands are ABB, Schneider, Hyundai and Siemens with metal board, 4 flexi single cables of 1*400 mm2/ phase, 2X400mm /neutral  and 40 m length for each phase  to connect between main circuit breaker and transformer with all electrical connections and it should be subject to laboratory tests, with all the works required to complete the Job. See compliance sheet","Ea.",1,null,0]
["H- Withdrawals Section \" Intake\"    "]
[111,"Supply and install horizontal pump (split case)  it is installed in intake of Q=500m3/hr., H=100-110 m, Rpm= 1500 capacity and 350 Kw engine capacity, consists of stainless steel shaft, the engine coil is made of copper and  bronze impeller, the work includes supplying and installing  electrical operation board for each pump, consist of  metal box of 100*120 dimensions, circuit breaker of 800 Amp capacity, 3 contactors of 500 Amp capacity, overload of 300 Amp, phase failure, timer, digital LED Volt and Amp Meters, bus bar with 3 CT for each phase contacted with Amp meter by selector switch to read amperage each Phase, required brands are ABB, Schneider, Hyundai and Siemens , with electrical cable of 4*240 mm2 and 40 m length for each pump which connecting between the transformer and the main board, and electrical cable of 3*240 mm2 and 300 m length for each pump which connecting between the pump and electrical board, price should include steel frame to install the electrical board made of angle steel section of 2 inch, supplying, installing and contacting check valve “sandwich type” 8'' from western origin, Rubber Expansion Joint, 2 valves of 8 inch dimeter, withdrawal sucker of 10 inch diameter for the pushing pumps with the nuts and washers, armed rubber hose of 8 and 10 inch diameter and 25 m length for each diameter for each pumps , all installations and connections accessories, Elbows, Tees, Reducer Couplings, Flanges, bolts, Washers.. etc., for each pumps to ensure that the pump is properly operated, with all the works required to complete the Job, the pumps in the water project are Standart type. Certificate of origin and inspection documents are required.See compliance sheet","Ea. ",3,null,0]
[112," Supply, install, connect and operate transformer of 1000 kVa capacity and the coil of copper, the work includes supplying and installing circuit breaker of 1600 Amp required brands are ABB, Schneider, Hyundai and Siemens with metal board, 4 flexi single cables of 1*400 mm2/ phase, 2X400mm /neutral  and 40 m length for each phase  to connect between main circuit breaker and transformer with all electrical connections and it should be subject to laboratory tests, with all the works required to complete the Job. See compliance sheet","Ea.",1,null,0]
[113," Supply,install, connect, test and operated changeover of 1600 Amp.  capacity with the metal board of 70*40*30cm size, passbars, and multi digit screen (V, A, Hz). Preferred brands are ABB, Schneider, Siemens or equivalent, with electrical cables  to connect  the board with generators using armed cable of 4X400mm/ phase, 2X400/ Neutral  and 40m length for each generators,  all electrical installation and connection accessories, and all the required works to complete the Job.See compliance sheet  ","Ea.",1,null,0]
[114,"Supply, install, connect and test the main valve of the main steel ductile pipe of with 600 mm diameter from western origin, the work includes cutting and welding works, all required connection and installations accessories, removing the old damaged valve, and all the required works to complete the Job ","Ea.",2,null,0]
[115,"Supply materials, tools and manpower to cast reinforced concrete for base of the pumps of 5*3m dimensions, 80 cm thickness, compressive strength not less than 26 MPS using sulphate resistant cement and two layers of  deformed reinforcing steel bars of 12 mm diameter @ 200 mm C-C , the work includes removing 20 cm of existing soil, compaction of the sub grade layer, spreading crashed stone layer of 20 cm thickness with well compaction and Sub-base layer” class B” of 20 cm thickness and compacted to a min of 95% field density to comply with the modified proctor test, laying one layer of thick nylon. (polyphone sheets 500 Micron) before casting the concrete base, timber formwork shuttering and channel trench drain, as per attached drawings, with all the required works to complete the Job.","M3",{"$f":"0.8*3*5*3","v":36.000000000000007},null,0]
[116,"Supply materials, tools, equipment and manpower to supply and install steel basin of 4*3 m dimension and 4 m high to protect withdrawal sucker of pumps from the withdrawal of mud deposits and plankton from the river, which consist of steel structure of steel( I) section of 8 inch and 5 mm thickness for main beams and columns which reaches the bottom of the river, sub beams from steel U section of 6 inch and 5 mm thick, covering the stature using checker plate sheet of 8 mm thickness from four sides in addition to the base, supplying and installing checker plate partition of 3*6 m and 8 mm thick installed on the basin, the steel basin should be installed and connected it on the steel structure of the exist  withdrawal structure, the work includes cutting and welding works, making of openings in steel basin with suitable dimensions to exit the sand and weeds from steel basin according to the directions of the end user, painting with three layers of anti-rust paint, all connection and installation accessories, all required equipment to move and install it in the river, and all the required works to complete the work.","Ea.",1,null,0]
["I - Garden Works"]
[117,"Supply materials, tools and manpower to backfill the garden with  blended soil of 30 cm with afforestation as following: "]
["A","Backfill with clean and Screened Loam","M3",500,null,0]
["B","Supplying and planting the natural grass","M2",400,null,0]
["C ","Supplying and planting the palm trees with length no less than 2m.","Ea.",50,null,0]
["D","Supplying and planting the ficus tree with length no less than 1.5m","Ea.",50,null,0]
["J - Fire Extinguisher"]
[118,"Supply and install manual fire extinguisher of 12 kg weight according to the technical specifications of the civil defense DG', it should be installed in the specified places and all the required works to complete the Job as following:"]
["A","Supply and install Portable Fire Extinguisher of  12Kg. powder capacity each in Location as decided by the Engineer.  The installation shall be complete with brackets and it should be usable for at least three years from the date of receipt all in accordance with the Civil Defense specification  - type  (A.B.C)","Ea.",5,null,0]
["B","Supply and install Portable Fire Extinguisher of  12 Kg.  CO2 capacity each in Location as decided by the Engineer.  The installation shall be complete with brackets and it should be usable for at least three years from the date of receipt all in accordance with the Civil Defense specification .","Ea.",5,null,0]
["Total Cost",{"$nulls":4},{"$f":"SUM(F6:F154)","v":0},null," "]